bitfinex-derivatives/quotes_BTCF0:USTF0_20250325
["timestamp","ask_amount","ask_price","bid_price","bid_amount"]
[1742929561653,0.0085824,87941.0,87940.0,0.07154]
[1742929561855,0.1222813,87941.0,87940.0,0.07154]
[1742929563266,0.1222813,87941.0,87940.0,0.0705]
[1742929563464,0.1222813,87941.0,87940.0,0.1083]
[1742929563662,0.1222813,87941.0,87940.0,0.1093]
[1742929564760,0.1593813,87941.0,87940.0,0.1093]
[1742929567665,0.15183891,87941.0,87940.0,0.1093]
[1742929570971,0.11473891,87941.0,87940.0,0.1093]
[1742929573768,0.15273891,87941.0,87940.0,0.1093]
[1742929574373,0.16020611,87941.0,87940.0,0.1093]
[1742929576870,0.12220611,87941.0,87940.0,0.1093]
[1742929579879,0.15830611,87941.0,87940.0,0.1093]
[1742929580275,0.12220611,87941.0,87940.0,0.1093]
[1742929582770,0.15930611,87941.0,87940.0,0.1093]
[1742929583878,0.12220611,87941.0,87940.0,0.1093]
[1742929586481,0.15830611,87941.0,87940.0,0.1093]
[1742929586882,0.15830611,87941.0,87940.0,0.38131146]
[1742929587183,0.12220611,87941.0,87940.0,0.38131146]
[1742929589983,0.48300611,87941.0,87940.0,0.38131146]
[1742929590983,0.51830611,87941.0,87940.0,0.38131146]
[1742929594792,0.51830611,87941.0,87940.0,0.1093]
[1742929595688,8e-05,87942.0,87941.0,0.1136989]
[1742929595880,0.1124736,87951.0,87950.0,0.1136873]
[1742929596189,0.01305728,87979.0,87959.0,0.1136756]
[1742929596488,0.00104,87960.0,87959.0,2.52292026]
[1742929596785,0.0004,87960.0,87959.0,2.52292026]
[1742929597692,0.0004,87960.0,87959.0,2.37492026]
[1742929599391,0.0004,87960.0,87959.0,2.3991756]
[1742929599591,0.0004,87960.0,87959.0,2.79017051]
[1742929599793,0.0004,87960.0,87959.0,2.80324885]
[1742929599984,0.0004,87960.0,87959.0,2.83884885]
[1742929603790,0.0004,87960.0,87959.0,0.94785394]
[1742929605394,8e-05,87963.0,87962.0,0.1136718]
[1742929605583,8e-05,87963.0,87962.0,0.3950718]
[1742929607089,8e-05,87963.0,87962.0,0.3960718]
[1742929608490,8e-05,87963.0,87962.0,1.8960718]
[1742929608896,0.0718,87977.0,87975.0,0.113655]
[1742929609193,0.07440001,87976.0,87975.0,0.234975]
[1742929610694,0.07440001,87976.0,87975.0,0.24803165]
[1742929612193,0.07440001,87976.0,87975.0,0.28583165]
[1742929618088,0.07440001,87976.0,87975.0,0.64663165]
[1742929618387,0.0738,87976.0,87975.0,0.24803165]
[1742929618591,0.07512,87976.0,87975.0,0.24803165]
[1742929619594,0.07512,87976.0,87975.0,0.60883165]
[1742929619898,0.0738,87976.0,87975.0,0.64573165]
[1742929620099,0.0738,87976.0,87975.0,0.68283165]
[1742929620685,0.0372,87976.0,87975.0,0.68283165]
[1742929620888,0.0748,87990.0,87989.0,0.1136369]
[1742929621085,0.0748,87990.0,87989.0,0.8096569]
[1742929621287,0.0748,87990.0,87989.0,0.7728569]
[1742929622191,0.0748,87990.0,87989.0,0.65922]
[1742929622394,0.0748,87990.0,87989.0,0.7728569]
[1742929623103,0.0748,87990.0,87989.0,0.74448427]
[1742929623398,0.07620001,87990.0,87989.0,0.74448427]
[1742929623600,0.0748,87990.0,87989.0,0.74448427]
[1742929623802,0.0748,87990.0,87989.0,0.78238427]
[1742929624594,0.0748,87990.0,87989.0,0.63084737]
[1742929624997,0.07612,87990.0,87989.0,0.63084737]
[1742929625699,0.07612,87990.0,87989.0,0.74448427]
[1742929625900,0.0748,87990.0,87989.0,0.63084737]
[1742929626099,0.5492356,87990.0,87989.0,0.01004737]
[1742929626305,0.47456,87990.0,87989.0,0.01004737]
[1742929627195,0.5881956,87990.0,87989.0,0.01004737]
[1742929628697,0.47456,87990.0,87989.0,0.01004737]
[1742929628903,0.5881956,87990.0,87989.0,0.01004737]
[1742929633710,0.47456,87990.0,87989.0,0.01004737]
[1742929633905,0.47456,87990.0,87989.0,0.35368427]
[1742929634216,0.11376,87990.0,87989.0,0.43058427]
[1742929634397,0.1124,87990.0,87989.0,0.43058427]
[1742929634807,0.1124,87990.0,87989.0,0.31694737]
[1742929635210,0.1124,87990.0,87989.0,0.43058427]
[1742929635415,0.1124,87990.0,87989.0,0.39238427]
[1742929635712,0.1124,87990.0,87989.0,0.27874737]
[1742929635905,0.11372,87990.0,87989.0,0.27874737]
[1742929636104,0.1124,87990.0,87989.0,0.27874737]
[1742929636303,0.11372,87990.0,87989.0,0.27874737]
[1742929637212,0.03892,87990.0,87989.0,0.39238427]
[1742929637510,0.0004,87992.0,87991.0,0.1136343]
[1742929637709,0.0004,87992.0,87991.0,0.4306543]
[1742929637710,0.00048,87992.0,87991.0,0.4306543]
[1742929637916,0.00048,87992.0,87991.0,0.51578041]
[1742929639022,0.0004,87992.0,87991.0,0.51578041]
[1742929640130,0.0004,87992.0,87991.0,2.01578041]
[1742929641129,0.0004,87992.0,87991.0,2.01778041]
[1742929642436,0.0008,87996.0,87995.0,0.1136291]
[1742929642733,0.0008,87996.0,87995.0,0.43115521]
[1742929643237,0.0008,87996.0,87995.0,2.00455521]
[1742929644335,0.0008,87996.0,87995.0,2.36535521]
[1742929644735,0.0008,87996.0,87995.0,2.36635521]
[1742929647033,0.1,88000.0,87999.0,0.113624]
[1742929647240,0.1,88000.0,87999.0,1.320784]
[1742929647538,0.06024423,88000.0,87999.0,1.396184]
[1742929648040,0.02048846,88000.0,87999.0,1.396184]
[1742929648234,8e-05,88006.0,88005.0,0.1136162]
[1742929648431,8e-05,88006.0,88005.0,0.7044162]
[1742929648639,8e-05,88006.0,88005.0,0.7796362]
[1742929648837,0.0355,88007.0,88006.0,0.1136149]
[1742929649036,0.0355,88007.0,88006.0,0.3649749]
[1742929649238,0.0355,88007.0,88006.0,0.4388749]
[1742929649837,0.3608,88021.0,88007.0,0.1136136]
[1742929650038,0.0355,88020.0,88007.0,0.3449336]
[1742929650248,0.0714,88020.0,88007.0,0.4188336]
[1742929651547,8e-05,88012.0,88007.0,1.9188336]
[1742929652844,8e-05,88012.0,88007.0,1.93161847]
[1742929655643,8e-05,88012.0,88007.0,2.6759458]
[1742929655839,8e-05,88012.0,88007.0,2.7866658]
[1742929657048,0.0714,88020.0,88007.0,2.7866658]
[1742929657049,8e-05,88022.0,88015.0,0.1136022]
[1742929657250,0.00076,88022.0,88017.0,0.3608]
[1742929657440,8e-05,88022.0,88017.0,0.53212]
[1742929658941,8e-05,88022.0,88017.0,0.6457207]
[1742929659447,8e-05,88022.0,88017.0,0.6457202]
[1742929659847,0.0014,88022.0,88018.0,0.1135987]
[1742929660148,8e-05,88022.0,88018.0,0.14132]
[1742929660351,0.3608,88020.0,88018.0,0.14132]
[1742929660549,0.0703,88019.0,88018.0,0.14132]
[1742929660750,0.07162,88019.0,88018.0,0.14132]
[1742929663252,0.07162,88019.0,88018.0,3.14132]
[1742929663455,0.0703,88019.0,88018.0,3.14132]
[1742929663760,0.1838981,88019.0,88018.0,3.00132]
[1742929665443,0.0703,88019.0,88018.0,3.00132]
[1742929665744,0.1838981,88019.0,88018.0,3.00132]
[1742929666655,0.0703,88019.0,88018.0,3.1149194]
[1742929666953,0.0703,88019.0,88018.0,3.3449194]
[1742929667255,0.0703,88019.0,88018.0,3.26632]
[1742929667852,0.0703,88019.0,88018.0,3.3799194]
[1742929668053,0.0703,88019.0,88018.0,3.26632]
[1742929668255,0.1838981,88019.0,88018.0,3.26632]
[1742929669453,0.1838981,88019.0,88018.0,3.23132]
[1742929670651,0.1838981,88019.0,88018.0,3.00132]
[1742929677750,0.1838981,88019.0,88018.0,3.03612]
[1742929685466,0.19629825,88019.0,88018.0,3.03612]
[1742929685666,0.1838981,88019.0,88018.0,3.03612]
[1742929686066,0.1838981,88019.0,88018.0,3.07402]
[1742929686468,0.1838981,88019.0,88018.0,3.03612]
[1742929687070,0.19639705,88019.0,88018.0,3.07402]
[1742929687471,0.1838981,88019.0,88018.0,3.07402]
[1742929691778,0.1489981,88019.0,88018.0,3.07402]
[1742929692470,8e-05,88021.0,88018.0,3.71482]
[1742929692664,8e-05,88021.0,88020.0,0.1135969]
[1742929692874,0.13562657,88028.0,88020.0,0.32744369]
[1742929693179,0.23688464,88048.0,88022.0,0.5679693]
[1742929693363,0.0567697,88065.0,88022.0,0.5679693]
[1742929693364,0.21358306,88053.0,88047.0,0.3608]
[1742929693565,0.21358306,88053.0,88052.0,0.1135556]
[1742929693566,0.21494306,88053.0,88052.0,0.1135556]
[1742929693767,0.21494306,88053.0,88052.0,0.25132]
[1742929693768,0.1738259,88053.0,88052.0,0.25132]
[1742929693967,0.2873802,88053.0,88052.0,0.25132]
[1742929694173,0.1738259,88053.0,88052.0,0.25132]
[1742929694372,0.1738259,88053.0,88052.0,0.37752963]
[1742929694578,0.1738259,88053.0,88052.0,0.26397403]
[1742929694778,0.1738259,88053.0,88052.0,0.37752963]
[1742929694968,0.1738259,88053.0,88052.0,0.01397403]
[1742929695572,0.1738259,88053.0,88052.0,0.13596808]
[1742929695776,0.2096259,88053.0,88052.0,0.17226808]
[1742929695971,0.2109459,88053.0,88052.0,0.17226808]
[1742929696172,0.2109459,88053.0,88052.0,0.5102502]
[1742929696173,0.03712,88053.0,88052.0,0.5102502]
[1742929696367,0.0358,88053.0,88052.0,0.5102502]
[1742929696576,0.0358,88053.0,88052.0,0.5485502]
[1742929698590,0.0358,88053.0,88052.0,0.5465502]
[1742929698777,8e-05,88055.0,88054.0,0.113553]
[1742929698983,8e-05,88055.0,88054.0,0.114873]
[1742929700086,0.0004,88056.0,88055.0,0.1135517]
[1742929700271,0.00172,88056.0,88055.0,0.4756717]
[1742929700470,0.0004,88056.0,88055.0,0.5480717]
[1742929700873,0.00048,88056.0,88055.0,0.5480717]
[1742929702578,0.00048,88056.0,88055.0,0.5490717]
[1742929703697,0.1505444,88061.0,88059.0,0.1135456]
[1742929703987,0.15114441,88061.0,88060.0,0.1885453]
[1742929704178,0.15114441,88061.0,88060.0,0.1898653]
[1742929704988,0.15114441,88061.0,88060.0,0.07632]
[1742929705189,0.15114441,88061.0,88060.0,0.00132]
[1742929706288,0.03760001,88061.0,88060.0,0.00132]
[1742929706488,0.15114401,88061.0,88060.0,0.07372]
[1742929708088,0.15114401,88061.0,88060.0,0.03842]
[1742929711093,0.03760001,88061.0,88060.0,0.03842]
[1742929711484,0.15114401,88061.0,88060.0,0.03842]
[1742929713678,0.15114401,88061.0,88060.0,0.00132]
[1742929714484,0.18324401,88061.0,88060.0,0.00132]
[1742929714893,0.19218345,88061.0,88060.0,3.00132]
[1742929715081,0.19158344,88061.0,88060.0,3.00132]
[1742929715689,0.19904638,88061.0,88060.0,3.00132]
[1742929722404,0.30968638,88061.0,88060.0,3.00132]
[1742929722594,0.30070694,88061.0,88060.0,2.9421648]
[1742929722801,0.31027526,88061.0,88060.0,2.9431248]
[1742929722997,0.31595324,88061.0,88060.0,2.827323]
[1742929723701,0.31603545,88061.0,88060.0,2.827323]
[1742929724793,0.31035731,88061.0,88060.0,2.827323]
[1742929724995,0.31603545,88061.0,88060.0,2.827323]
[1742929725497,0.4660355,88061.0,88060.0,2.753803]
[1742929726203,0.4660355,88061.0,88060.0,2.7054419]
[1742929726402,0.4660355,88061.0,88060.0,2.6525535]
[1742929726600,0.4660355,88061.0,88060.0,2.52152]
[1742929727004,0.4660355,88061.0,88060.0,2.4021297]
[1742929727200,0.3160355,88061.0,88060.0,2.2355251]
[1742929727400,0.3160355,88061.0,88060.0,2.1760343]
[1742929727806,0.31035731,88061.0,88060.0,2.0860801]
[1742929727998,0.31035731,88061.0,88060.0,2.0296403]
[1742929728204,0.71795731,88061.0,88060.0,1.7991435]
[1742929728403,0.71795731,88061.0,88060.0,1.5038954]
[1742929729312,0.71795731,88061.0,88060.0,1.2140171]
[1742929729512,0.71795731,88061.0,88060.0,0.9522304]
[1742929729913,0.71795731,88061.0,88060.0,0.7714053]
[1742929730112,0.71795731,88061.0,88060.0,0.529295]
[1742929730503,0.71795731,88061.0,88060.0,0.351864]
[1742929730703,0.1135556,88052.0,88051.0,0.20190042]
[1742929730898,0.60965491,88052.0,88051.0,0.20254042]
[1742929731206,0.67775491,88052.0,88051.0,0.20254042]
[1742929731406,0.68521785,88052.0,88051.0,0.20254042]
[1742929732113,0.68521785,88052.0,88051.0,0.00164]
[1742929733013,0.68558503,88052.0,88051.0,0.00164]
[1742929733409,0.68658503,88052.0,88051.0,0.00164]
[1742929734919,0.67160257,88052.0,88051.0,0.00164]
[1742929735316,0.67160257,88052.0,88051.0,0.001]
[1742929736019,0.68651876,88052.0,88051.0,0.001]
[1742929737908,0.50777876,88052.0,88051.0,0.001]
[1742929738111,0.25761876,88052.0,88051.0,0.3618]
[1742929738419,0.32611876,88052.0,88051.0,0.36244]
[1742929739512,0.32623752,88052.0,88051.0,0.36244]
[1742929740414,0.68703752,88052.0,88051.0,0.00164]
[1742929740720,0.68703752,88052.0,88051.0,0.001]
[1742929740916,0.0567784,88051.0,88047.0,0.0004543]
[1742929741117,0.1135685,88042.0,88041.0,8e-08]
[1742929741416,0.61004748,88042.0,88041.0,8e-08]
[1742929741620,0.1135723,88039.0,88038.0,0.0332]
[1742929741918,0.1135736,88038.0,88037.0,0.21406607]
[1742929742114,0.22101782,88038.0,88037.0,0.00144]
[1742929742418,0.23342973,88038.0,88037.0,0.00068]
[1742929742812,0.23789267,88038.0,88037.0,0.00068]
[1742929743617,0.23989267,88038.0,88037.0,0.00068]
[1742929744514,0.35053267,88038.0,88037.0,0.00068]
[1742929745114,0.35453267,88038.0,88037.0,0.00068]
[1742929745311,0.35653267,88038.0,88037.0,0.03508]
[1742929746017,0.35253267,88038.0,88037.0,0.03508]
[1742929746313,0.32373267,88038.0,88037.0,0.0344]
[1742929746722,0.32373267,88038.0,88037.0,0.0662]
[1742929748225,0.32273267,88038.0,88037.0,0.0662]
[1742929748427,0.31873267,88038.0,88037.0,0.0662]
[1742929748626,0.32173267,88038.0,88037.0,0.0662]
[1742929748827,0.32173267,88038.0,88037.0,0.0668]
[1742929749025,0.32154721,88038.0,88037.0,0.0662]
[1742929749221,0.31854721,88038.0,88037.0,0.0662]
[1742929749424,0.1954953,88038.0,88037.0,0.0662]
[1742929749727,0.0234217,88038.0,88037.0,0.5405749]
[1742929749925,0.1369953,88038.0,88037.0,0.5412549]
[1742929751024,0.1369953,88038.0,88037.0,0.42768]
[1742929751532,0.1349953,88038.0,88037.0,0.42768]
[1742929751822,0.1319953,88038.0,88037.0,0.42768]
[1742929752028,0.1349953,88038.0,88037.0,0.42768]
[1742929755127,0.13493117,88038.0,88037.0,0.42768]
[1742929756322,0.20073117,88038.0,88037.0,0.06688]
[1742929756725,0.20073117,88038.0,88037.0,0.0662]
[1742929757035,0.20073117,88038.0,88037.0,0.0668]
[1742929759828,0.19159654,88038.0,88037.0,0.0668]
[1742929760021,0.20070221,88038.0,88037.0,0.0668]
[1742929760527,0.19159654,88038.0,88037.0,0.0668]
[1742929760733,0.19159654,88038.0,88037.0,0.0006]
[1742929760932,0.1135801,88034.0,88033.0,0.1135794]
[1742929761139,0.1143401,88034.0,88033.0,0.1820994]
[1742929761440,0.1888563,88034.0,88033.0,0.1820994]
[1742929761626,0.1797401,88034.0,88033.0,0.1820994]
[1742929761840,0.1888563,88034.0,88033.0,0.1820994]
[1742929762339,0.1908563,88034.0,88033.0,0.1820994]
[1742929762729,0.19831924,88034.0,88033.0,0.1820994]
[1742929763339,0.19831924,88034.0,88033.0,0.06852]
[1742929763722,0.19831924,88034.0,88033.0,0.1821001]
[1742929763941,0.19631924,88034.0,88033.0,0.1821001]
[1742929764238,0.19831924,88034.0,88033.0,0.06852]
[1742929764534,0.19826967,88034.0,88033.0,0.06852]
[1742929764740,0.16566967,88034.0,88033.0,1.56852]
[1742929764939,0.19750967,88034.0,88033.0,1.56852]
[1742929765141,0.19822967,88034.0,88033.0,0.06852]
[1742929765345,0.19622967,88034.0,88033.0,0.06852]
[1742929765638,0.19822967,88034.0,88033.0,0.06852]
[1742929765840,0.19822967,88034.0,88033.0,0.0678]
[1742929766040,0.19822967,88034.0,88033.0,0.1820601]
[1742929766341,0.08464957,88034.0,88033.0,0.5428601]
[1742929766543,8e-05,88040.0,88039.0,0.1135723]
[1742929766742,8e-05,88040.0,88039.0,0.1142523]
[1742929767039,0.00072,88040.0,88039.0,0.1800523]
[1742929767343,0.0317,88043.0,88042.0,0.1135685]
[1742929767544,0.03242,88043.0,88042.0,0.1142885]
[1742929767734,0.03242,88043.0,88042.0,0.1800885]
[1742929769139,0.03442,88043.0,88042.0,0.1800885]
[1742929770743,0.00272,88043.0,88042.0,0.6008885]
[1742929770944,0.1106,88063.0,88055.0,0.1135517]
[1742929771141,0.00128001,88056.0,88055.0,0.4752317]
[1742929771643,0.00128001,88056.0,88055.0,0.5078317]
[1742929772337,0.03298001,88056.0,88055.0,0.5418317]
[1742929773439,0.03298001,88056.0,88055.0,0.7818317]
[1742929773644,0.1106,88071.0,88055.0,0.68054229]
[1742929773945,0.0679,88062.0,88061.0,0.113544]
[1742929774138,0.0679,88062.0,88061.0,0.114424]
[1742929774338,0.06878001,88062.0,88061.0,0.114424]
[1742929775531,0.18232271,88062.0,88061.0,0.00088]
[1742929775734,0.07278001,88062.0,88061.0,0.114424]
[1742929776142,0.0719,88062.0,88061.0,0.114424]
[1742929776643,0.07278001,88062.0,88061.0,0.114424]
[1742929777034,0.0719,88062.0,88061.0,0.114424]
[1742929777234,0.0719,88062.0,88061.0,0.164424]
[1742929777438,0.0719,88062.0,88061.0,0.354424]
[1742929781150,0.0373,88062.0,88061.0,0.354424]
[1742929781339,0.0004,88072.0,88065.0,0.056769]
[1742929781544,0.0004,88072.0,88071.0,0.8351311]
[1742929781747,0.0004,88072.0,88071.0,1.0960511]
[1742929782249,0.0004,88072.0,88071.0,2.5960511]
[1742929783646,0.0004,88072.0,88071.0,1.0960511]
[1742929784045,0.0004,88072.0,88071.0,2.5960511]
[1742929784241,0.0024,88072.0,88071.0,2.5960511]
[1742929784841,0.0024,88072.0,88071.0,2.6310511]
[1742929786254,0.0024,88072.0,88071.0,1.1655511]
[1742929786641,0.0024,88072.0,88071.0,1.1990511]
[1742929792847,0.0024,88072.0,88071.0,1.2400711]
[1742929796257,0.01117261,88072.0,88071.0,1.2400711]
[1742929796452,0.01117261,88072.0,88071.0,1.1295511]
[1742929796652,0.01117261,88072.0,88071.0,1.2400711]
[1742929796955,0.01117261,88072.0,88071.0,1.2065711]
[1742929797752,0.01118395,88072.0,88071.0,1.2065711]
[1742929798647,0.01118395,88072.0,88071.0,2.7065711]
[1742929798953,0.01118395,88072.0,88071.0,1.0960511]
[1742929799846,0.0024,88072.0,88071.0,1.0960511]
[1742929801555,0.0678,88072.0,88071.0,1.0960511]
[1742929803351,0.0678,88072.0,88071.0,1.1591511]
[1742929805357,0.0678,88072.0,88071.0,1.57419634]
[1742929805759,8e-05,88075.0,88074.0,0.1135272]
[1742929805959,8e-05,88075.0,88074.0,0.3044072]
[1742929806162,8e-05,88075.0,88074.0,0.3366072]
[1742929806463,8e-05,88075.0,88074.0,0.34519048]
[1742929806666,8e-05,88075.0,88074.0,0.37659048]
[1742929807261,0.00208,88075.0,88074.0,0.37659048]
[1742929808461,1.51587107,88090.0,88087.0,0.1135105]
[1742929808656,0.00132,88088.0,88087.0,0.7343105]
[1742929808855,0.00132,88088.0,88087.0,0.7987905]
[1742929809550,0.06462,88088.0,88087.0,0.7987905]
[1742929809755,0.06462,88088.0,88087.0,0.81107323]
[1742929810057,0.06462,88088.0,88087.0,0.74747323]
[1742929810262,0.06462,88088.0,88087.0,0.77757323]
[1742929810766,0.07343971,88088.0,88087.0,0.77757323]
[1742929811065,0.07343971,88088.0,88087.0,0.80847323]
[1742929811266,0.07343971,88088.0,88087.0,1.22351847]
[1742929813863,0.06462,88088.0,88087.0,1.33403847]
[1742929814164,0.03202,88088.0,88087.0,1.33403847]
[1742929814673,1.51587107,88090.0,88089.0,0.1135079]
[1742929814970,1.51711108,88090.0,88089.0,1.8447479]
[1742929815162,1.47738486,88090.0,88089.0,1.9079479]
[1742929815364,0.92600703,88090.0,88089.0,1.95385084]
[1742929815566,0.8850408,88090.0,88089.0,1.95385084]
[1742929815960,0.8453206,88090.0,88089.0,1.95385084]
[1742929816366,0.8056004,88090.0,88089.0,1.95385084]
[1742929816867,0.7658802,88090.0,88089.0,1.95485084]
[1742929817170,0.72616,88090.0,88089.0,1.95485084]
[1742929817564,0.72616,88090.0,88089.0,1.95785084]
[1742929819571,0.32253839,88090.0,88089.0,1.95785084]
[1742929820070,0.32253839,88090.0,88089.0,2.37289608]
[1742929820071,0.11826751,88090.0,88089.0,2.37289608]
[1742929820571,0.01686978,88116.0,88110.0,0.08943306]
[1742929820757,8e-08,88120.0,88119.0,0.1134692]
[1742929820956,8e-08,88120.0,88119.0,0.3546692]
[1742929821157,8e-08,88120.0,88119.0,0.36701533]
[1742929821361,8e-08,88120.0,88119.0,0.47749533]
[1742929821674,0.00913949,88120.0,88119.0,0.47749533]
[1742929821879,8e-08,88120.0,88119.0,0.47749533]
[1742929822070,8e-08,88120.0,88119.0,0.53899533]
[1742929822665,8e-08,88120.0,88119.0,2.03899533]
[1742929823072,8e-08,88120.0,88119.0,2.04765635]
[1742929823876,0.06490008,88120.0,88119.0,2.04765635]
[1742929825464,0.06490008,88120.0,88119.0,0.51655635]
[1742929825862,8e-08,88120.0,88119.0,0.51655635]
[1742929826069,0.06390008,88120.0,88119.0,0.51655635]
[1742929826268,0.06390008,88120.0,88119.0,0.78492831]
[1742929826869,0.01348765,88120.0,88119.0,0.78492831]
[1742929828580,0.01348765,88120.0,88119.0,0.51655635]
[1742929830080,0.04708765,88120.0,88119.0,0.51655635]
[1742929831470,0.0328,88124.0,88120.0,0.1134679]
[1742929831671,0.0327,88123.0,88120.0,0.4530079]
[1742929832185,0.0344,88122.0,88120.0,0.4530079]
[1742929832570,0.05217919,88121.0,88120.0,0.4530079]
[1742929833488,0.05217919,88121.0,88120.0,0.5634479]
[1742929835874,0.01727289,88126.0,88125.0,0.1134615]
[1742929836183,0.01727289,88126.0,88125.0,0.7354615]
[1742929836674,0.01727289,88126.0,88125.0,0.7704615]
[1742929837074,0.01727289,88126.0,88125.0,0.8059615]
[1742929837473,0.01727289,88126.0,88111.0,0.39045397]
[1742929837474,0.0567338,88121.0,88111.0,0.39045397]
[1742929837685,0.0567338,88121.0,88109.0,0.33546495]
[1742929837686,0.1134808,88110.0,88109.0,0.33546495]
[1742929837983,0.112486,88106.0,88105.0,0.40255794]
[1742929838188,0.12548174,88106.0,88105.0,0.40315794]
[1742929838484,0.0567478,88099.0,88094.0,0.46921148]
[1742929838683,0.1134989,88096.0,88095.0,0.00141405]
[1742929838884,0.1134989,88096.0,88094.0,0.46921148]
[1742929838885,0.1135001,88095.0,88094.0,0.46921148]
[1742929839087,0.2648201,88095.0,88094.0,0.46985148]
[1742929840371,0.2618201,88095.0,88094.0,0.46985148]
[1742929840776,0.1118201,88095.0,88094.0,0.46985148]
[1742929840984,0.1138201,88095.0,88094.0,0.46985148]
[1742929841393,0.2638201,88095.0,88094.0,0.46985148]
[1742929842195,0.2638201,88095.0,88094.0,0.00064]
[1742929842382,0.1135105,88087.0,88086.0,0.00017024]
[1742929842693,0.2252705,88087.0,88086.0,0.00017024]
[1742929843696,0.2262705,88087.0,88086.0,0.00017024]
[1742929844277,0.2262705,88087.0,88079.0,0.00045414]
[1742929844278,0.1135195,88080.0,88079.0,0.00045414]
[1742929844481,0.1147995,88080.0,88079.0,0.00045414]
[1742929844678,0.1147995,88080.0,88077.0,0.0357]
[1742929844679,0.1135401,88064.0,88047.0,0.3612543]
[1742929844882,0.23746638,88064.0,88063.0,0.00173422]
[1742929845083,0.2253001,88064.0,88063.0,0.00173422]
[1742929846392,0.2253001,88064.0,88063.0,0.00473422]
[1742929847990,0.2283001,88064.0,88063.0,0.00473422]
[1742929848192,0.3608,88085.0,88063.0,0.16527472]
[1742929848395,0.11458005,88072.0,88071.0,0.3608]
[1742929848900,0.11462004,88072.0,88071.0,0.36144]
[1742929849990,0.11862004,88072.0,88071.0,0.36144]
[1742929850799,0.12062004,88072.0,88071.0,0.36144]
[1742929851287,0.11862004,88072.0,88071.0,0.36144]
[1742929851694,0.11862004,88072.0,88071.0,0.00064]
[1742929851903,0.1135355,88068.0,88065.0,0.0329]
[1742929852093,0.1135362,88067.0,88066.0,0.0345]
[1742929852393,0.11441621,88067.0,88066.0,0.08538]
[1742929852697,0.11441621,88067.0,88066.0,0.12078]
[1742929853295,0.11541621,88067.0,88066.0,0.12078]
[1742929853999,0.11541621,88067.0,88066.0,0.07078]
[1742929854295,0.11541621,88067.0,88066.0,0.0699]
[1742929854597,0.12443592,88067.0,88066.0,0.0699]
[1742929854786,0.12343592,88067.0,88066.0,0.0699]
[1742929854996,0.12443592,88067.0,88066.0,0.0709]
[1742929855500,0.12443592,88067.0,88066.0,0.0699]
[1742929855795,0.12543592,88067.0,88066.0,0.0699]
[1742929856197,0.12543592,88067.0,88066.0,0.0705]
[1742929856788,0.01189972,88067.0,88066.0,0.0705]
[1742929857295,0.12343592,88067.0,88066.0,0.0705]
[1742929857497,0.12443592,88067.0,88066.0,0.0705]
[1742929857995,0.12443592,88067.0,88066.0,0.1840375]
[1742929858799,0.01089972,88067.0,88066.0,0.1840375]
[1742929859000,0.12443592,88067.0,88066.0,0.1840375]
[1742929859297,0.12436867,88067.0,88066.0,0.1840375]
[1742929859487,0.12336867,88067.0,88066.0,0.1840375]
[1742929859687,0.12436867,88067.0,88066.0,0.1840375]
[1742929860391,0.12336867,88067.0,88066.0,0.1840375]
[1742929860592,0.12436867,88067.0,88066.0,0.1840375]
[1742929861401,0.12436977,88067.0,88066.0,0.1840375]
[1742929861702,0.12436977,88067.0,88066.0,0.1850375]
[1742929862297,0.12436977,88067.0,88066.0,0.0715]
[1742929863401,0.12436977,88067.0,88066.0,0.1850375]
[1742929863790,0.12336977,88067.0,88066.0,0.0715]
[1742929864001,0.12436977,88067.0,88066.0,0.1850375]
[1742929864393,0.23488977,88067.0,88066.0,0.1850375]
[1742929864700,0.12436977,88067.0,88066.0,0.1840375]
[1742929865498,0.12436977,88067.0,88066.0,0.1850375]
[1742929865701,8e-05,88069.0,88068.0,0.1135349]
[1742929865904,0.00985883,88069.0,88068.0,0.1141749]
[1742929866205,0.12339253,88069.0,88068.0,0.2016749]
[1742929866397,0.12339253,88069.0,88068.0,0.08814]
[1742929867205,0.13872536,88069.0,88068.0,0.09014]
[1742929867605,0.14654374,88069.0,88068.0,0.09014]
[1742929868005,0.14654374,88069.0,88068.0,0.08814]
[1742929868209,0.14654374,88069.0,88068.0,0.2016749]
[1742929868707,0.03301004,88069.0,88068.0,0.2016749]
[1742929868907,0.03301004,88069.0,88068.0,0.2026749]
[1742929869111,0.01767721,88069.0,88068.0,0.2026749]
[1742929869406,0.03037608,88069.0,88068.0,0.5624749]
[1742929869703,8e-05,88071.0,88068.0,0.5624749]
[1742929869704,0.10153483,88094.0,88087.0,0.1135105]
[1742929869904,0.10153483,88094.0,88087.0,0.4749505]
[1742929869905,0.00100001,88088.0,88087.0,0.4749505]
[1742929870209,0.0004,88088.0,88087.0,0.4749505]
[1742929870404,0.0004,88088.0,88087.0,0.44424]
[1742929870598,0.1145892,88088.0,88087.0,0.44424]
[1742929871199,0.13051547,88088.0,88087.0,0.44424]
[1742929871401,0.13051675,88088.0,88087.0,0.44424]
[1742929871598,0.01700755,88088.0,88087.0,0.44424]
[1742929871799,0.01700755,88088.0,88087.0,0.08344]
[1742929871800,0.13151675,88088.0,88087.0,0.08344]
[1742929871999,0.13151675,88088.0,88087.0,0.0828]
[1742929872198,0.1165892,88088.0,88087.0,0.0828]
[1742929872711,0.1713892,88088.0,88087.0,0.0828]
[1742929873796,0.1713892,88088.0,88087.0,0.08344]
[1742929873997,0.1713892,88088.0,88087.0,0.0828]
[1742929874206,0.1713892,88088.0,88087.0,0.0834]
[1742929875111,0.1713892,88088.0,88087.0,0.0828]
[1742929881608,0.18056711,88088.0,88087.0,0.0828]
[1742929881809,0.18829196,88088.0,88087.0,0.0828]
[1742929882308,0.17911405,88088.0,88087.0,0.0828]
[1742929882619,0.18830079,88088.0,88087.0,0.0828]
[1742929882914,0.29882079,88088.0,88087.0,0.0828]
[1742929883111,0.28963405,88088.0,88087.0,0.0828]
[1742929883513,0.29881359,88088.0,88087.0,0.0828]
[1742929885912,0.24401359,88088.0,88087.0,0.0828]
[1742929886114,0.2734168,88088.0,88087.0,0.0828]
[1742929886816,0.27336993,88088.0,88087.0,0.0828]
[1742929887018,0.29866993,88088.0,88087.0,0.0828]
[1742929888017,0.28953405,88088.0,88087.0,0.0828]
[1742929888221,0.29866148,88088.0,88087.0,0.0828]
[1742929894119,0.29866719,88088.0,88087.0,0.0828]
[1742929894524,0.18814719,88088.0,88087.0,0.0828]
[1742929894723,0.29866719,88088.0,88087.0,0.0828]
[1742929897725,0.27336719,88088.0,88087.0,0.0828]